[Event "Titled Tuesday Blitz February 22 Early 2022"]
[White "Heinemann, Josefine"]
[Black "Stanisz, Patryk"]
[WhiteFideId "12900460"]
[BlackFideId "1123106"]
[WhiteElo "2300"]
[BlackElo "1876"]
[Result "1/2-1/2"]
[Round "08"]
[TimeControl "180+1"]
[Date "2022.02.22"]
[WhiteClock "0:00:09"]
[BlackClock "0:00:08"]

1. Nf3 {[%clk 0:03:00]}  c5 {[%clk 0:02:57]} 2. e4 {[%clk 0:03:00]}  Nc6 {[%clk 0:02:57]} 3. d4 {[%clk 0:02:56]}  cxd4 {[%clk 0:02:58]} 4. Nxd4 {[%clk 0:02:57]}  Nf6 {[%clk 0:02:58]} 5. Nc3 {[%clk 0:02:57]}  e5 {[%clk 0:02:59]} 6. Ndb5 {[%clk 0:02:55]}  d6 {[%clk 0:02:59]} 7. Nd5 {[%clk 0:02:56]}  Nxd5 {[%clk 0:02:59]} 8. exd5 {[%clk 0:02:57]}  Ne7 {[%clk 0:02:59]} 9. Qf3 {[%clk 0:02:45]}  Nf5 {[%clk 0:02:53]} 10. Bd3 {[%clk 0:02:37]}  Nh4 {[%clk 0:02:52]} 11. Qg3 {[%clk 0:02:31]}  Ng6 {[%clk 0:02:41]} 12. h4 {[%clk 0:02:28]}  f5 {[%clk 0:02:21]} 13. Bg5 {[%clk 0:02:19]}  Qa5+ {[%clk 0:02:10]} 14. Bd2 {[%clk 0:02:19]}  Qb6 {[%clk 0:02:07]} 15. a4 {[%clk 0:01:57]}  e4 {[%clk 0:01:57]} 16. a5 {[%clk 0:01:55]}  Qd8 {[%clk 0:01:56]} 17. Be2 {[%clk 0:01:50]}  Be7 {[%clk 0:01:56]} 18. Bf4 {[%clk 0:01:45]}  Nxf4 {[%clk 0:01:49]} 19. Qxf4 {[%clk 0:01:46]}  O-O {[%clk 0:01:43]} 20. g3 {[%clk 0:01:44]}  a6 {[%clk 0:01:25]} 21. Nd4 {[%clk 0:01:42]}  Bf6 {[%clk 0:01:02]} 22. Qe3 {[%clk 0:01:32]}  Be5 {[%clk 0:00:56]} 23. c3 {[%clk 0:01:26]}  f4 {[%clk 0:00:48]} 24. gxf4 {[%clk 0:01:25]}  Bxf4 {[%clk 0:00:49]} 25. Qxe4 {[%clk 0:01:21]}  Qf6 {[%clk 0:00:46]} 26. Ne6 {[%clk 0:01:14]}  Bxe6 {[%clk 0:00:31]} 27. Qxe6+ {[%clk 0:01:15]}  Kh8 {[%clk 0:00:26]} 28. Qxf6 {[%clk 0:01:10]}  Rxf6 {[%clk 0:00:26]} 29. Kd1 {[%clk 0:01:01]}  Be5 {[%clk 0:00:25]} 30. f3 {[%clk 0:01:00]}  Re8 {[%clk 0:00:25]} 31. Ra4 {[%clk 0:00:56]}  h6 {[%clk 0:00:24]} 32. Re4 {[%clk 0:00:55]}  Rc8 {[%clk 0:00:21]} 33. Kc2 {[%clk 0:00:55]}  Rc5 {[%clk 0:00:21]} 34. Ra1 {[%clk 0:00:53]}  Rxd5 {[%clk 0:00:20]} 35. Raa4 {[%clk 0:00:47]}  Rc5 {[%clk 0:00:20]} 36. Reb4 {[%clk 0:00:45]}  Rc7 {[%clk 0:00:19]} 37. Rb6 {[%clk 0:00:45]}  Bg3 {[%clk 0:00:17]} 38. Re4 {[%clk 0:00:42]}  Rff7 {[%clk 0:00:15]} 39. h5 {[%clk 0:00:35]}  Be5 {[%clk 0:00:12]} 40. Bd3 {[%clk 0:00:17]}  Rfe7 {[%clk 0:00:12]} 41. f4 {[%clk 0:00:16]}  Bf6 {[%clk 0:00:08]} 42. Rxe7 {[%clk 0:00:16]}  Bxe7 {[%clk 0:00:09]} 43. Bg6 {[%clk 0:00:14]}  Kg8 {[%clk 0:00:08]} 44. Rb4 {[%clk 0:00:14]}  Kf8 {[%clk 0:00:08]} 45. Re4 {[%clk 0:00:14]}  Rc8 {[%clk 0:00:07]} 46. Re6 {[%clk 0:00:13]}  Rd8 {[%clk 0:00:07]} 47. b4 {[%clk 0:00:13]}  d5 {[%clk 0:00:07]} 48. Kd3 {[%clk 0:00:13]}  d4 {[%clk 0:00:07]} 49. Rb6 {[%clk 0:00:11]}  dxc3+ {[%clk 0:00:07]} 50. Kxc3 {[%clk 0:00:12]}  Rd7 {[%clk 0:00:07]} 51. Bf5 {[%clk 0:00:11]}  Bf6+ {[%clk 0:00:07]} 52. Kb3 {[%clk 0:00:11]}  Rc7 {[%clk 0:00:07]} 53. Rd6 {[%clk 0:00:10]}  Ke7 {[%clk 0:00:06]} 54. Re6+ {[%clk 0:00:10]}  Kd8 {[%clk 0:00:04]} 55. Re3 {[%clk 0:00:11]}  Re7 {[%clk 0:00:04]} 56. Rd3+ {[%clk 0:00:11]}  Kc7 {[%clk 0:00:04]} 57. Bg6 {[%clk 0:00:10]}  Rd7 {[%clk 0:00:03]} 58. Rxd7+ {[%clk 0:00:08]}  Kxd7 {[%clk 0:00:04]} 59. Kc4 {[%clk 0:00:08]}  Kc7 {[%clk 0:00:04]} 60. f5 {[%clk 0:00:08]}  Bg5 {[%clk 0:00:05]} 61. b5 {[%clk 0:00:09]}  Bf6 {[%clk 0:00:06]} 62. b6+ {[%clk 0:00:07]}  Kb8 {[%clk 0:00:05]} 63. Bf7 {[%clk 0:00:06]}  Bg5 {[%clk 0:00:05]} 64. Be6 {[%clk 0:00:06]}  Bf6 {[%clk 0:00:06]} 65. Bf7 {[%clk 0:00:06]}  Bg5 {[%clk 0:00:06]} 66. Kb4 {[%clk 0:00:06]}  Bf6 {[%clk 0:00:06]} 67. Ka4 {[%clk 0:00:06]}  Be7 {[%clk 0:00:07]} 68. Bg6 {[%clk 0:00:07]}  Bf6 {[%clk 0:00:07]} 69. Bf7 {[%clk 0:00:07]}  Be7 {[%clk 0:00:08]} 70. Bg6 {[%clk 0:00:08]}  Bf6 {[%clk 0:00:08]} 71. Bf7 {[%clk 0:00:09]} 1/2-1/2


[Site "https://www.chess.com"]

[Event "Titled Tuesday Blitz February 22 Early 2022"]
[White "Hjartarson, Johann"]
[Black "Wagner, Dennis"]
[WhiteFideId "2300044"]
[BlackFideId "24650684"]
[WhiteElo "2649"]
[BlackElo "2807"]
[Result "0-1"]
[Round "08"]
[TimeControl "180+1"]
[Date "2022.02.22"]
[WhiteClock "0:00:02"]
[BlackClock "0:00:04"]

1. e4 {[%clk 0:03:00]}  e5 {[%clk 0:03:00]} 2. Nf3 {[%clk 0:03:00]}  Nc6 {[%clk 0:03:00]} 3. Bb5 {[%clk 0:02:59]}  a6 {[%clk 0:03:00]} 4. Ba4 {[%clk 0:03:00]}  Nf6 {[%clk 0:03:01]} 5. O-O {[%clk 0:02:59]}  b5 {[%clk 0:02:57]} 6. Bb3 {[%clk 0:02:59]}  Bc5 {[%clk 0:02:58]} 7. c3 {[%clk 0:02:58]}  d6 {[%clk 0:02:58]} 8. d4 {[%clk 0:02:57]}  Bb6 {[%clk 0:02:58]} 9. Be3 {[%clk 0:02:56]}  Bg4 {[%clk 0:02:54]} 10. Re1 {[%clk 0:02:24]}  exd4 {[%clk 0:02:50]} 11. Bxd4 {[%clk 0:02:21]}  Nxd4 {[%clk 0:02:45]} 12. cxd4 {[%clk 0:02:21]}  Bxf3 {[%clk 0:02:24]} 13. gxf3 {[%clk 0:02:18]}  Nh5 {[%clk 0:02:24]} 14. Nc3 {[%clk 0:02:16]}  Nf4 {[%clk 0:02:10]} 15. Kh1 {[%clk 0:02:14]}  Qh4 {[%clk 0:02:02]} 16. Qd2 {[%clk 0:02:08]}  Bxd4 {[%clk 0:01:50]} 17. Rg1 {[%clk 0:01:47]}  Be5 {[%clk 0:01:36]} 18. Rg4 {[%clk 0:01:45]}  Qf6 {[%clk 0:00:49]} 19. Re1 {[%clk 0:01:10]}  h5 {[%clk 0:00:48]} 20. Rg3 {[%clk 0:01:03]}  c6 {[%clk 0:00:42]} 21. Reg1 {[%clk 0:00:53]}  g6 {[%clk 0:00:42]} 22. Nd1 {[%clk 0:00:44]}  h4 {[%clk 0:00:39]} 23. Rg4 {[%clk 0:00:38]}  Nh3 {[%clk 0:00:39]} 24. R1g2 {[%clk 0:00:34]}  Qxf3 {[%clk 0:00:26]} 25. Ne3 {[%clk 0:00:34]}  Nf4 {[%clk 0:00:19]} 26. Bd1 {[%clk 0:00:33]}  Qxe4 {[%clk 0:00:19]} 27. f3 {[%clk 0:00:27]}  Qb1 {[%clk 0:00:14]} 28. Rg1 {[%clk 0:00:23]}  Qxa2 {[%clk 0:00:13]} 29. Nc2 {[%clk 0:00:14]}  Nh3 {[%clk 0:00:08]} 30. Re1 {[%clk 0:00:10]}  O-O {[%clk 0:00:06]} 31. Nb4 {[%clk 0:00:08]}  Qa5 {[%clk 0:00:06]} 32. Bc2 {[%clk 0:00:04]}  c5 {[%clk 0:00:05]} 33. Bxg6 {[%clk 0:00:03]}  fxg6 {[%clk 0:00:03]} 34. Rxg6+ {[%clk 0:00:02]}  Bg7 {[%clk 0:00:04]} 0-1


[Site "https://www.chess.com"]

[Event "Titled Tuesday Blitz February 22 Early 2022"]
[White "Indjic, Aleksandar"]
[Black "Lazavik, Denis"]
[WhiteFideId "911925"]
[BlackFideId "13515110"]
[WhiteElo "2616"]
[BlackElo "2436"]
[Result "1-0"]
[Round "08"]
[TimeControl "180+1"]
[Date "2022.02.22"]
[WhiteClock "0:00:14"]
[BlackClock "0:00:52"]

1. d4 {[%clk 0:03:00]}  d5 {[%clk 0:02:59]} 2. Nf3 {[%clk 0:03:01]}  Nf6 {[%clk 0:03:00]} 3. Bf4 {[%clk 0:03:00]}  e6 {[%clk 0:02:59]} 4. e3 {[%clk 0:03:00]}  Bd6 {[%clk 0:03:00]} 5. Nbd2 {[%clk 0:02:59]}  O-O {[%clk 0:03:00]} 6. c3 {[%clk 0:02:56]}  b6 {[%clk 0:02:58]} 7. Ne5 {[%clk 0:02:55]}  c5 {[%clk 0:02:53]} 8. h4 {[%clk 0:02:53]}  Qc7 {[%clk 0:02:50]} 9. h5 {[%clk 0:02:49]}  Nbd7 {[%clk 0:02:50]} 10. h6 {[%clk 0:02:43]}  g6 {[%clk 0:02:49]} 11. Nxd7 {[%clk 0:02:16]}  Bxd7 {[%clk 0:02:48]} 12. Bxd6 {[%clk 0:01:59]}  Qxd6 {[%clk 0:02:49]} 13. Nf3 {[%clk 0:01:59]}  Ng4 {[%clk 0:02:32]} 14. Ng5 {[%clk 0:01:54]}  e5 {[%clk 0:02:28]} 15. Be2 {[%clk 0:01:45]}  Nf6 {[%clk 0:02:05]} 16. Nf3 {[%clk 0:01:43]}  exd4 {[%clk 0:01:54]} 17. exd4 {[%clk 0:01:42]}  Bg4 {[%clk 0:01:53]} 18. Ne5 {[%clk 0:01:23]}  Bxe2 {[%clk 0:01:52]} 19. Qxe2 {[%clk 0:01:24]}  Rfe8 {[%clk 0:01:51]} 20. O-O-O {[%clk 0:01:11]}  Nd7 {[%clk 0:01:30]} 21. Qf3 {[%clk 0:01:10]}  Nxe5 {[%clk 0:01:29]} 22. dxe5 {[%clk 0:01:09]}  Rxe5 {[%clk 0:01:29]} 23. Rhe1 {[%clk 0:00:58]}  Rae8 {[%clk 0:01:25]} 24. Rxe5 {[%clk 0:00:56]}  Rxe5 {[%clk 0:01:26]} 25. c4 {[%clk 0:00:53]}  d4 {[%clk 0:01:22]} 26. Kb1 {[%clk 0:00:45]}  Re8 {[%clk 0:01:13]} 27. Kc2 {[%clk 0:00:40]}  Qe5 {[%clk 0:01:10]} 28. Kb3 {[%clk 0:00:27]}  Qe2 {[%clk 0:01:05]} 29. Qf6 {[%clk 0:00:15]}  Qe5 {[%clk 0:00:52]} 30. Re1 {[%clk 0:00:14]} 1-0


[Site "https://www.chess.com"]

[Event "Titled Tuesday Blitz February 22 Early 2022"]
[White "Ishbaev, Alibek"]
[Black "Djokic, Mihailo"]
[WhiteFideId "14205017"]
[BlackFideId "976440"]
[WhiteElo "2385"]
[BlackElo "2008"]
[Result "1/2-1/2"]
[Round "08"]
[TimeControl "180+1"]
[Date "2022.02.22"]
[WhiteClock "0:00:25"]
[BlackClock "0:01:05"]

1. c4 {[%clk 0:02:56]}  e5 {[%clk 0:02:58]} 2. g3 {[%clk 0:02:56]}  Nc6 {[%clk 0:02:58]} 3. Bg2 {[%clk 0:02:56]}  Bc5 {[%clk 0:02:59]} 4. e3 {[%clk 0:02:55]}  d6 {[%clk 0:03:00]} 5. Ne2 {[%clk 0:02:56]}  Bf5 {[%clk 0:03:00]} 6. O-O {[%clk 0:02:56]}  h5 {[%clk 0:02:57]} 7. d4 {[%clk 0:02:55]}  Bb6 {[%clk 0:02:55]} 8. c5 {[%clk 0:02:50]}  dxc5 {[%clk 0:02:54]} 9. Bxc6+ {[%clk 0:02:49]}  bxc6 {[%clk 0:02:53]} 10. dxe5 {[%clk 0:02:50]}  Qxd1 {[%clk 0:02:52]} 11. Rxd1 {[%clk 0:02:48]}  Bg4 {[%clk 0:02:52]} 12. Nbc3 {[%clk 0:02:47]}  h4 {[%clk 0:02:52]} 13. Kg2 {[%clk 0:02:41]}  hxg3 {[%clk 0:02:50]} 14. hxg3 {[%clk 0:02:40]}  Ne7 {[%clk 0:02:51]} 15. f3 {[%clk 0:02:33]}  Be6 {[%clk 0:02:50]} 16. b3 {[%clk 0:02:28]}  c4 {[%clk 0:02:45]} 17. Nf4 {[%clk 0:02:25]}  cxb3 {[%clk 0:02:42]} 18. Nxe6 {[%clk 0:02:25]}  fxe6 {[%clk 0:02:42]} 19. axb3 {[%clk 0:02:25]}  Nd5 {[%clk 0:02:41]} 20. Nxd5 {[%clk 0:02:18]}  cxd5 {[%clk 0:02:41]} 21. Bd2 {[%clk 0:02:05]}  Rb8 {[%clk 0:02:31]} 22. Rh1 {[%clk 0:02:01]}  Rxh1 {[%clk 0:02:27]} 23. Rxh1 {[%clk 0:02:02]}  Bc5 {[%clk 0:02:27]} 24. Rc1 {[%clk 0:01:20]}  Bb6 {[%clk 0:02:26]} 25. b4 {[%clk 0:01:14]}  Rd8 {[%clk 0:02:19]} 26. Rc6 {[%clk 0:00:50]}  Kf7 {[%clk 0:02:15]} 27. f4 {[%clk 0:00:40]}  g6 {[%clk 0:02:11]} 28. Kf3 {[%clk 0:00:39]}  Rh8 {[%clk 0:02:07]} 29. Bc3 {[%clk 0:00:36]}  Rh1 {[%clk 0:02:06]} 30. Bd4 {[%clk 0:00:37]}  Rb1 {[%clk 0:01:56]} 31. Bxb6 {[%clk 0:00:35]}  cxb6 {[%clk 0:01:55]} 32. Rc7+ {[%clk 0:00:32]}  Ke8 {[%clk 0:01:55]} 33. Rxa7 {[%clk 0:00:32]}  Rxb4 {[%clk 0:01:54]} 34. Rg7 {[%clk 0:00:30]}  Rb3 {[%clk 0:01:52]} 35. Rxg6 {[%clk 0:00:30]}  Kf7 {[%clk 0:01:50]} 36. Rf6+ {[%clk 0:00:28]}  Ke7 {[%clk 0:01:51]} 37. Ke2 {[%clk 0:00:23]}  b5 {[%clk 0:01:49]} 38. Rh6 {[%clk 0:00:22]}  b4 {[%clk 0:01:48]} 39. Rh7+ {[%clk 0:00:22]}  Ke8 {[%clk 0:01:48]} 40. Rb7 {[%clk 0:00:23]}  Rb1 {[%clk 0:01:46]} 41. g4 {[%clk 0:00:22]}  b3 {[%clk 0:01:46]} 42. g5 {[%clk 0:00:21]}  Kd8 {[%clk 0:01:44]} 43. Kd2 {[%clk 0:00:20]}  b2 {[%clk 0:01:43]} 44. Kc2 {[%clk 0:00:18]}  Re1 {[%clk 0:01:43]} 45. Rxb2 {[%clk 0:00:18]}  Re2+ {[%clk 0:01:41]} 46. Kc1 {[%clk 0:00:17]}  Rxe3 {[%clk 0:01:41]} 47. Rg2 {[%clk 0:00:16]}  Ke8 {[%clk 0:01:40]} 48. g6 {[%clk 0:00:16]}  Kf8 {[%clk 0:01:40]} 49. g7+ {[%clk 0:00:15]}  Kg8 {[%clk 0:01:40]} 50. Rg4 {[%clk 0:00:15]}  Re2 {[%clk 0:01:29]} 51. Kd1 {[%clk 0:00:15]}  Rf2 {[%clk 0:01:29]} 52. Ke1 {[%clk 0:00:15]}  Rh2 {[%clk 0:01:29]} 53. Kf1 {[%clk 0:00:13]}  d4 {[%clk 0:01:28]} 54. Rg6 {[%clk 0:00:11]}  Rh4 {[%clk 0:01:26]} 55. Rf6 {[%clk 0:00:10]}  Kxg7 {[%clk 0:01:25]} 56. Ke2 {[%clk 0:00:11]}  Rh3 {[%clk 0:01:22]} 57. Rxe6 {[%clk 0:00:09]}  d3+ {[%clk 0:01:22]} 58. Kd2 {[%clk 0:00:09]}  Kf7 {[%clk 0:01:19]} 59. Rf6+ {[%clk 0:00:10]}  Ke7 {[%clk 0:01:19]} 60. Rf5 {[%clk 0:00:10]}  Ke6 {[%clk 0:01:19]} 61. Rf6+ {[%clk 0:00:10]}  Kd5 {[%clk 0:01:19]} 62. Rd6+ {[%clk 0:00:10]}  Ke4 {[%clk 0:01:19]} 63. Rf6 {[%clk 0:00:11]}  Rh2+ {[%clk 0:01:19]} 64. Kc3 {[%clk 0:00:11]}  Rc2+ {[%clk 0:01:16]} 65. Kb3 {[%clk 0:00:11]}  Rc8 {[%clk 0:01:12]} 66. Rd6 {[%clk 0:00:11]}  Kxf4 {[%clk 0:00:59]} 67. Rxd3 {[%clk 0:00:10]}  Kxe5 {[%clk 0:01:00]} 68. Rc3 {[%clk 0:00:10]}  Rb8+ {[%clk 0:00:59]} 69. Kc2 {[%clk 0:00:11]}  Kd4 {[%clk 0:00:59]} 70. Rb3 {[%clk 0:00:11]}  Rh8 {[%clk 0:00:59]} 71. Kb2 {[%clk 0:00:12]}  Kc4 {[%clk 0:00:59]} 72. Rc3+ {[%clk 0:00:12]}  Kb4 {[%clk 0:00:59]} 73. Rb3+ {[%clk 0:00:13]}  Ka4 {[%clk 0:01:00]} 74. Ra3+ {[%clk 0:00:13]}  Kb5 {[%clk 0:01:00]} 75. Rb3+ {[%clk 0:00:14]}  Kc5 {[%clk 0:01:00]} 76. Rc3+ {[%clk 0:00:15]}  Kd4 {[%clk 0:01:01]} 77. Rb3 {[%clk 0:00:16]}  Rh2+ {[%clk 0:01:01]} 78. Kb1 {[%clk 0:00:16]}  Kc4 {[%clk 0:01:01]} 79. Ra3 {[%clk 0:00:16]}  Kb4 {[%clk 0:01:00]} 80. Rg3 {[%clk 0:00:17]}  Rf2 {[%clk 0:01:00]} 81. Kc1 {[%clk 0:00:17]}  Kc4 {[%clk 0:01:00]} 82. Kd1 {[%clk 0:00:18]}  Kd4 {[%clk 0:01:01]} 83. Ke1 {[%clk 0:00:18]}  Rh2 {[%clk 0:01:01]} 84. Ra3 {[%clk 0:00:19]}  Ke4 {[%clk 0:01:01]} 85. Kf1 {[%clk 0:00:19]}  Rb2 {[%clk 0:01:01]} 86. Kg1 {[%clk 0:00:20]}  Kf4 {[%clk 0:01:02]} 87. Kf1 {[%clk 0:00:20]}  Ke4 {[%clk 0:01:01]} 88. Ke1 {[%clk 0:00:21]}  Kd4 {[%clk 0:01:02]} 89. Kd1 {[%clk 0:00:21]}  Rh2 {[%clk 0:01:02]} 90. Rg3 {[%clk 0:00:21]}  Rh1+ {[%clk 0:01:02]} 91. Ke2 {[%clk 0:00:22]}  Ke4 {[%clk 0:01:03]} 92. Kf2 {[%clk 0:00:21]}  Kf4 {[%clk 0:01:03]} 93. Ra3 {[%clk 0:00:21]}  Rb1 {[%clk 0:01:03]} 94. Ke2 {[%clk 0:00:21]}  Rb2+ {[%clk 0:01:03]} 95. Kd1 {[%clk 0:00:21]}  Rh2 {[%clk 0:01:04]} 96. Kc1 {[%clk 0:00:21]}  Ke4 {[%clk 0:01:04]} 97. Kd1 {[%clk 0:00:22]}  Kd4 {[%clk 0:01:05]} 98. Ke1 {[%clk 0:00:22]}  Kc4 {[%clk 0:01:04]} 99. Kf1 {[%clk 0:00:23]}  Kb4 {[%clk 0:01:05]} 100. Rg3 {[%clk 0:00:23]}  Kc5 {[%clk 0:01:05]} 101. Kg1 {[%clk 0:00:23]}  Ra2 {[%clk 0:01:06]} 102. Rg2 {[%clk 0:00:23]}  Ra1+ {[%clk 0:01:05]} 103. Kh2 {[%clk 0:00:24]}  Kd4 {[%clk 0:01:06]} 104. Rg1 {[%clk 0:00:24]}  Ra8 {[%clk 0:01:05]} 105. Rg3 {[%clk 0:00:24]}  Ke4 {[%clk 0:01:06]} 106. Rb3 {[%clk 0:00:24]}  Kf4 {[%clk 0:01:05]} 107. Kg2 {[%clk 0:00:25]}  Ra4 {[%clk 0:01:03]} 108. Kf2 {[%clk 0:00:25]}  Ra2+ {[%clk 0:01:03]} 109. Ke1 {[%clk 0:00:25]}  Ke4 {[%clk 0:01:04]} 110. Kd1 {[%clk 0:00:25]}  Kd4 {[%clk 0:01:05]} 111. Rh3 {[%clk 0:00:25]}  Kc4 {[%clk 0:01:04]} 112. Kc1 {[%clk 0:00:26]}  Kb4 {[%clk 0:01:04]} 113. Kd1 {[%clk 0:00:26]}  Ra3 {[%clk 0:01:05]} 114. Rxa3 {[%clk 0:00:25]}  Kxa3 {[%clk 0:01:05]} 1/2-1/2


[Site "https://www.chess.com"]

[Event "Titled Tuesday Blitz February 22 Early 2022"]
[White "Jodorcovsky Werjivker, Paulo"]
[Black "Thomas, Anysia"]
[WhiteFideId "3700305"]
[BlackFideId "670472"]
[WhiteElo "2075"]
[BlackElo "2002"]
[Result "1-0"]
[Round "08"]
[TimeControl "180+1"]
[Date "2022.02.22"]
[WhiteClock "0:00:40"]
[BlackClock "0:00:01"]

1. d4 {[%clk 0:03:00]}  Nf6 {[%clk 0:02:59]} 2. c4 {[%clk 0:03:00]}  g6 {[%clk 0:03:00]} 3. Nc3 {[%clk 0:03:00]}  d5 {[%clk 0:03:01]} 4. Bf4 {[%clk 0:03:00]}  Bg7 {[%clk 0:03:01]} 5. e3 {[%clk 0:03:00]}  O-O {[%clk 0:03:01]} 6. Nf3 {[%clk 0:02:58]}  c5 {[%clk 0:03:01]} 7. dxc5 {[%clk 0:02:58]}  Qa5 {[%clk 0:02:58]} 8. Rc1 {[%clk 0:02:59]}  dxc4 {[%clk 0:02:55]} 9. Bxc4 {[%clk 0:02:59]}  Qxc5 {[%clk 0:02:56]} 10. Bb3 {[%clk 0:02:52]}  Nc6 {[%clk 0:02:56]} 11. O-O {[%clk 0:02:52]}  Qa5 {[%clk 0:02:47]} 12. h3 {[%clk 0:02:52]}  Bf5 {[%clk 0:02:45]} 13. Qe2 {[%clk 0:02:51]}  Ne4 {[%clk 0:02:42]} 14. Nxe4 {[%clk 0:02:48]}  Bxe4 {[%clk 0:02:40]} 15. Rfd1 {[%clk 0:02:48]}  Bxf3 {[%clk 0:02:10]} 16. gxf3 {[%clk 0:02:38]}  e5 {[%clk 0:02:04]} 17. Rd5 {[%clk 0:02:29]}  Qb6 {[%clk 0:01:54]} 18. Bg3 {[%clk 0:02:27]}  Rad8 {[%clk 0:01:48]} 19. Rcd1 {[%clk 0:02:26]}  h5 {[%clk 0:01:18]} 20. Bh4 {[%clk 0:02:26]}  Rxd5 {[%clk 0:01:18]} 21. Bxd5 {[%clk 0:02:18]}  Qb4 {[%clk 0:01:16]} 22. Bg3 {[%clk 0:01:57]}  h4 {[%clk 0:01:13]} 23. a3 {[%clk 0:01:52]}  Qa4 {[%clk 0:01:06]} 24. Bh2 {[%clk 0:01:45]}  a6 {[%clk 0:00:41]} 25. Be4 {[%clk 0:01:33]}  Qb3 {[%clk 0:00:34]} 26. Rd3 {[%clk 0:01:16]}  Qe6 {[%clk 0:00:33]} 27. Kg2 {[%clk 0:01:13]}  b5 {[%clk 0:00:14]} 28. Qd1 {[%clk 0:01:13]}  Ne7 {[%clk 0:00:12]} 29. Rd6 {[%clk 0:01:11]}  Qc8 {[%clk 0:00:11]} 30. Rd7 {[%clk 0:01:07]}  Nf5 {[%clk 0:00:10]} 31. Qd5 {[%clk 0:00:50]}  Qc1 {[%clk 0:00:08]} 32. Bxf5 {[%clk 0:00:47]}  gxf5 {[%clk 0:00:08]} 33. Bxe5 {[%clk 0:00:47]}  Bxe5 {[%clk 0:00:04]} 34. Qxe5 {[%clk 0:00:47]}  Qc2 {[%clk 0:00:04]} 35. Rd4 {[%clk 0:00:41]}  Rc8 {[%clk 0:00:01]} 36. Rxh4 {[%clk 0:00:40]} 1-0


[Site "https://www.chess.com"]

[Event "Titled Tuesday Blitz February 22 Early 2022"]
[White "Kaplan, Ebru"]
[Black "Xu, Yuanyuan"]
[WhiteFideId "6315194"]
[BlackFideId "8601089"]
[WhiteElo "1941"]
[BlackElo "2281"]
[Result "1-0"]
[Round "08"]
[TimeControl "180+1"]
[Date "2022.02.22"]
[WhiteClock "0:00:08"]
[BlackClock "0:00:01"]

1. e4 {[%clk 0:03:00]}  c5 {[%clk 0:02:59]} 2. Nf3 {[%clk 0:02:58]}  Nc6 {[%clk 0:02:59]} 3. Bb5 {[%clk 0:02:58]}  e6 {[%clk 0:02:58]} 4. O-O {[%clk 0:02:56]}  Nge7 {[%clk 0:02:59]} 5. Re1 {[%clk 0:02:56]}  b6 {[%clk 0:02:57]} 6. c3 {[%clk 0:02:55]}  a6 {[%clk 0:02:53]} 7. Bf1 {[%clk 0:02:54]}  d5 {[%clk 0:02:52]} 8. exd5 {[%clk 0:02:48]}  Nxd5 {[%clk 0:02:51]} 9. d4 {[%clk 0:02:47]}  cxd4 {[%clk 0:02:48]} 10. Nxd4 {[%clk 0:02:46]}  Bb7 {[%clk 0:02:48]} 11. Nxc6 {[%clk 0:02:42]}  Bxc6 {[%clk 0:02:48]} 12. Qg4 {[%clk 0:02:39]}  h5 {[%clk 0:02:24]} 13. Qg5 {[%clk 0:02:15]}  Be7 {[%clk 0:02:13]} 14. Qxg7 {[%clk 0:02:14]}  Bf6 {[%clk 0:02:13]} 15. Qg3 {[%clk 0:02:00]}  h4 {[%clk 0:02:11]} 16. Qf3 {[%clk 0:01:57]}  Nb4 {[%clk 0:01:54]} 17. Qe2 {[%clk 0:01:38]}  Bb5 {[%clk 0:01:45]} 18. c4 {[%clk 0:01:26]}  Bc6 {[%clk 0:01:30]} 19. a3 {[%clk 0:01:22]}  h3 {[%clk 0:01:23]} 20. g3 {[%clk 0:01:11]}  Nd5 {[%clk 0:00:45]} 21. cxd5 {[%clk 0:01:10]}  Qxd5 {[%clk 0:00:44]} 22. f3 {[%clk 0:01:09]}  Rh5 {[%clk 0:00:26]} 23. Nc3 {[%clk 0:00:57]}  Bxc3 {[%clk 0:00:18]} 24. bxc3 {[%clk 0:00:55]}  Rf5 {[%clk 0:00:17]} 25. Qe4 {[%clk 0:00:49]}  Qc5+ {[%clk 0:00:15]} 26. Be3 {[%clk 0:00:47]}  Qxc3 {[%clk 0:00:10]} 27. Qxf5 {[%clk 0:00:37]}  Qxa1 {[%clk 0:00:05]} 28. Qb1 {[%clk 0:00:28]}  Qxa3 {[%clk 0:00:04]} 29. Qxb6 {[%clk 0:00:24]}  Bxf3 {[%clk 0:00:04]} 30. Bg5 {[%clk 0:00:15]}  Qa2 {[%clk 0:00:02]} 31. Qf2 {[%clk 0:00:13]}  Qd5 {[%clk 0:00:01]} 32. Qb6 {[%clk 0:00:08]} 1-0


[Site "https://www.chess.com"]

[Event "Titled Tuesday Blitz February 22 Early 2022"]
[White "Karabalis, Harilos"]
[Black "Mikhailov, Viacheslav"]
[WhiteFideId "4621808"]
[BlackFideId "4187369"]
[WhiteElo "2168"]
[BlackElo "2381"]
[Result "0-1"]
[Round "08"]
[TimeControl "180+1"]
[Date "2022.02.22"]
[WhiteClock "0:00:16"]
[BlackClock "0:00:03"]

1. e4 {[%clk 0:03:00]}  d6 {[%clk 0:03:00]} 2. d4 {[%clk 0:03:00]}  Nf6 {[%clk 0:03:00]} 3. Nc3 {[%clk 0:03:00]}  g6 {[%clk 0:03:01]} 4. Be3 {[%clk 0:02:57]}  Bg7 {[%clk 0:03:01]} 5. f3 {[%clk 0:02:58]}  O-O {[%clk 0:03:02]} 6. Qd2 {[%clk 0:02:58]}  e5 {[%clk 0:03:02]} 7. Nge2 {[%clk 0:02:58]}  exd4 {[%clk 0:03:02]} 8. Nxd4 {[%clk 0:02:58]}  Nc6 {[%clk 0:03:03]} 9. g3 {[%clk 0:02:55]}  d5 {[%clk 0:03:00]} 10. Nxc6 {[%clk 0:02:52]}  bxc6 {[%clk 0:03:01]} 11. Rd1 {[%clk 0:02:52]}  Qe7 {[%clk 0:02:57]} 12. exd5 {[%clk 0:02:50]}  Nxd5 {[%clk 0:02:53]} 13. Nxd5 {[%clk 0:02:49]}  cxd5 {[%clk 0:02:54]} 14. c3 {[%clk 0:02:48]}  Rb8 {[%clk 0:02:48]} 15. Kf2 {[%clk 0:02:47]}  Re8 {[%clk 0:02:37]} 16. b4 {[%clk 0:02:41]}  a5 {[%clk 0:02:26]} 17. a3 {[%clk 0:02:40]}  axb4 {[%clk 0:02:23]} 18. axb4 {[%clk 0:02:39]}  Ra8 {[%clk 0:02:05]} 19. Bb5 {[%clk 0:02:36]}  Bd7 {[%clk 0:01:24]} 20. Bc5 {[%clk 0:02:28]}  Qd8 {[%clk 0:01:18]} 21. Bd3 {[%clk 0:02:27]}  Ra3 {[%clk 0:01:12]} 22. Rc1 {[%clk 0:02:22]}  c6 {[%clk 0:01:04]} 23. Rhe1 {[%clk 0:02:20]}  Rxe1 {[%clk 0:01:02]} 24. Qxe1 {[%clk 0:02:20]}  h5 {[%clk 0:00:56]} 25. b5 {[%clk 0:01:50]}  Ra2+ {[%clk 0:00:52]} 26. Kg1 {[%clk 0:01:45]}  cxb5 {[%clk 0:00:51]} 27. Qe3 {[%clk 0:01:29]}  h4 {[%clk 0:00:47]} 28. Bf1 {[%clk 0:01:15]}  hxg3 {[%clk 0:00:44]} 29. hxg3 {[%clk 0:01:15]}  Qc7 {[%clk 0:00:45]} 30. f4 {[%clk 0:01:08]}  Bf5 {[%clk 0:00:36]} 31. Bxb5 {[%clk 0:00:51]}  Be4 {[%clk 0:00:34]} 32. Bf1 {[%clk 0:00:50]}  Qa5 {[%clk 0:00:13]} 33. Bd4 {[%clk 0:00:48]}  Qa3 {[%clk 0:00:14]} 34. Bxg7 {[%clk 0:00:35]}  Kxg7 {[%clk 0:00:14]} 35. Qd4+ {[%clk 0:00:36]}  Kh7 {[%clk 0:00:15]} 36. Re1 {[%clk 0:00:36]}  Ra1 {[%clk 0:00:10]} 37. Re2 {[%clk 0:00:28]}  f6 {[%clk 0:00:03]} 38. Qxf6 {[%clk 0:00:19]}  Qa7+ {[%clk 0:00:03]} 39. Qd4 {[%clk 0:00:19]}  Qxd4+ {[%clk 0:00:03]} 40. cxd4 {[%clk 0:00:19]}  Rd1 {[%clk 0:00:04]} 41. Kf2 {[%clk 0:00:18]}  Rxd4 {[%clk 0:00:04]} 42. Ke3 {[%clk 0:00:17]}  Rd3+ {[%clk 0:00:03]} 43. Kf2 {[%clk 0:00:18]}  Rf3+ {[%clk 0:00:04]} 44. Ke1 {[%clk 0:00:18]}  Rxg3 {[%clk 0:00:04]} 45. Rh2+ {[%clk 0:00:17]}  Kg7 {[%clk 0:00:04]} 46. Be2 {[%clk 0:00:18]}  Ra3 {[%clk 0:00:03]} 47. Rh3 {[%clk 0:00:16]}  Rxh3 {[%clk 0:00:03]} 0-1


[Site "https://www.chess.com"]